Workbook

Sheet ORÇAMENTO
A1: <---- NUMERAR SERVIÇOS PARA CPU | C1: Ministério do Desenvolvimento Regional
C2: Companhia de Desenvolvimento dos Vales do São Francisco e do Parnaíba
C3: 1ª Superintendência Regional
B5: OBRA: | C5: PAVIMENTAÇÃO EM BLOQUETE - RUAS DIVERSAS - SANTA MARIA DO SALTO/ MG
B6: DATA: | C6: SETEMBRO/2023 | G6: BDI Serviços: | I6: ='BDI SERV'!D30/100 -> 0.2149
B7: PRAZO DE EXECUÇÃO: 210 DIAS
B8: ITEM | C8: DISCRIMINAÇÃO | D8: REFER. | E8: UNID. | F8: QUANT. | G8: P. UNITÁRIO | H8: P.UNIT.C/ BDI | I8: P. TOTAL | L8: .
A9: A | B9: 1 | C9: SERVIÇOS PRELIMINARES | I9: =SUM(I10:I14) -> 102234.37
A10: 1 | B10: 1.1 | C10: MOBILIZAÇÃO E DESMOBILIZAÇÃO | D10: CPU.1 | E10: GL | F10: 1 | G10: =VLOOKUP(A10,CPU!$A$1:$N$4525,9) -> 4047.6 | H10: =VLOOKUP(A10,CPU!$A$1:$N$4525,10) -> 4917.42924 | I10: =ROUND(F10*H10,2) -> 4917.43
A11: 2 | B11: 1.2 | C11: ADMINISTRAÇÃO LOCAL | D11: CPU.2 | E11: GL | F11: 1 | G11: =VLOOKUP(A11,CPU!$A$1:$N$4525,9) -> 70912.31 | H11: =VLOOKUP(A11,CPU!$A$1:$N$4525,10) -> 86151.36542 | I11: =ROUND(F11*H11,2) -> 86151.37
A12: 3 | B12: 1.3 | C12: CANTEIRO DE OBRAS | D12: CPU.3 | E12: GL | F12: 1 | G12: =VLOOKUP(A12,CPU!$A$1:$N$4525,9) -> 6825 | H12: =VLOOKUP(A12,CPU!$A$1:$N$4525,10) -> 8291.6925 | I12: =ROUND(F12*H12,2) -> 8291.69
A13: 4 | B13: 1.4 | C13: PLACA DE OBRA EM CHAPA DE AÇO GALVANIZADO | D13: 103689a | E13: M2 | F13: 2 | G13: =VLOOKUP(A13,CPU!$A$1:$N$4525,9) -> 307.76 | H13: =VLOOKUP(A13,CPU!$A$1:$N$4525,10) -> 373.897624 | I13: =ROUND(F13*H13,2) -> 747.8 | L13: .
A14: 5 | B14: 1.5 | C14: LOCAÇÃO DE PAVIMENTAÇÃO | D14: 99064 | E14: M | F14: 2500 | G14: =VLOOKUP(A14,CPU!$A$1:$N$4525,9) -> 0.7 | H14: =VLOOKUP(A14,CPU!$A$1:$N$4525,10) -> 0.85043 | I14: =ROUND(F14*H14,2) -> 2126.08
A15: B | B15: 2 | C15: PAVIMENTAÇÃO | I15: =SUM(I16:I19) -> 1158727.88
A16: 6 | B16: 2.1 | C16: ESCAVAÇÃO HORIZONTAL EM SOLO DE 1A CATEGORIA COM TRATOR DE ESTEIRAS | D16: 101116 | E16: M3 | F16: 2200 | G16: =VLOOKUP(A16,CPU!$A$1:$N$4525,9) -> 2.2 | H16: =VLOOKUP(A16,CPU!$A$1:$N$4525,10) -> 2.67278 | I16: =ROUND(F16*H16,2) -> 5880.12
A17: 7 | B17: 2.2 | C17: CARGA, MANOBRA E DESCARGA DE SOLOS E MATERIAIS GRANULARES EM CAMINHÃO BASCULANTE - CARGA COM PÁ CARREGADEIRA E DESCARGA LIVRE | D17: 100976 | E17: M3 | F17: 2200 | G17: =VLOOKUP(A17,CPU!$A$1:$N$4525,9) -> 8.71 | H17: =VLOOKUP(A17,CPU!$A$1:$N$4525,10) -> 10.581779 | I17: =ROUND(F17*H17,2) -> 23279.91
A18: 8 | B18: 2.3 | C18: REGULARIZAÇÃO E COMPACTAÇÃO DE SUBLEITO | D18: 100576 | E18: M2 | F18: 14200 | G18: =VLOOKUP(A18,CPU!$A$1:$N$4525,9) -> 2.57 | H18: =VLOOKUP(A18,CPU!$A$1:$N$4525,10) -> 3.122293 | I18: =ROUND(F18*H18,2) -> 44336.56
A19: 9 | B19: 2.6 | C19: EXECUÇÃO DE PAVIMENTO EM PISO INTERTRAVADO, COM BLOCO SEXTAVADO DE CONCRETO DE 25 X 25 CM, ESPESSURA 8 CM | D19: 92394a | E19: M2 | F19: 12150 | G19: =VLOOKUP(A19,CPU!$A$1:$N$4525,9) -> 73.52 | H19: =VLOOKUP(A19,CPU!$A$1:$N$4525,10) -> 89.319448 | I19: =ROUND(F19*H19,2) -> 1085231.29
A20: C | B20: 3 | C20: TRANSPORTE DE MATERIAIS | I20: =SUM(I21:I23) -> 22305.56
A21: 10 | B21: 3.1 | C21: TRANSPORTE COM CAMINHÃO BASCULANTE, EM VIA URBANA EM REVESTIMENTO PRIMÁRIO | D21: 95426 | E21: M3XKM | F21: 7000 | G21: =VLOOKUP(A21,CPU!$A$1:$N$4525,9) -> 1.41 | H21: =VLOOKUP(A21,CPU!$A$1:$N$4525,10) -> 1.713009 | I21: =ROUND(F21*H21,2) -> 11991.06
A22: 11 | B22: 3.2 | C22: TRANSPORTE COM CAMINHÃO BASCULANTE, EM VIA URBANA PAVIMENTADA | D22: 95427 | E22: M3XKM | F22: 3000.004 | G22: =VLOOKUP(A22,CPU!$A$1:$N$4525,9) -> 0.73 | H22: =VLOOKUP(A22,CPU!$A$1:$N$4525,10) -> 0.886877 | I22: =ROUND(F22*H22,2) -> 2660.63
A23: 12 | B23: 3.3 | C23: TRANSPORTE COM CAMINHÃO CARROCERIA, EM VIA URBANA PAVIMENTADA | D23: 100948 | E23: TXKM | F23: 9999.998058 | G23: =VLOOKUP(A23,CPU!$A$1:$N$4525,9) -> 0.63 | H23: =VLOOKUP(A23,CPU!$A$1:$N$4525,10) -> 0.765387 | I23: =ROUND(F23*H23,2) -> 7653.87
A24: D | B24: 4 | C24: OBRAS COMPLEMENTARES | I24: =SUM(I25:I29) -> 702732.55
A25: 13 | B25: 4.1 | C25: ASSENTAMENTO DE GUIA (MEIO-FIO) EM TRECHO RETO, CONFECCIONADA EM CONCRETO PRÉ-FABRICADO, DIMENSÕES 100X12X10X30 CM (COMPRIMENTO X BASE INFERIOR X BASE SUPERIOR X ALTURA) | D25: 94273a | E25: M | F25: 4600 | G25: =VLOOKUP(A25,CPU!$A$1:$N$4525,9) -> 45.68 | H25: =VLOOKUP(A25,CPU!$A$1:$N$4525,10) -> 55.496632 | I25: =ROUND(F25*H25,2) -> 255284.51
A26: 14 | B26: 4.2 | C26: EXECUÇÃO DE SARJETA DE CONCRETO USINADO, MOLDADA IN LOCO EM TRECHO RETO, 30 CM BASE X 5 CM ALTURA | D26: 94287a | E26: M | F26: 4400 | G26: =VLOOKUP(A26,CPU!$A$1:$N$4525,9) -> 34.83 | H26: =VLOOKUP(A26,CPU!$A$1:$N$4525,10) -> 42.314967 | I26: =ROUND(F26*H26,2) -> 186185.85
A27: 15 | B27: 4.3 | C27: EXECUÇÃO DE PASSEIO (CALÇADA) OU PISO DE CONCRETO COM CONCRETO MOLDADO IN LOCO, FEITO EM OBRA, ACABAMENTO CONVENCIONAL, NÃO ARMADO - 6CM ESPESSURA. | D27: 94990 | E27: M3 | F27: 240 | G27: =VLOOKUP(A27,CPU!$A$1:$N$4595,9) -> 724.46 | H27: =VLOOKUP(A27,CPU!$A$1:$N$4529,10) -> 880.146454 | I27: =ROUND(F27*H27,2) -> 211235.15
A28: 16 | B28: 4.4 | C28: FORNECIMENTO E INSTALAÇÃO DE PLACA DE SINALIZAÇÃO VIÁRIA - REGULAMENTAÇÃO (PARE) | D28: CPU.4 | E28: UN. | F28: 48 | G28: =VLOOKUP(A28,CPU!$A$1:$N$4525,9) -> 482.58 | H28: =VLOOKUP(A28,CPU!$A$1:$N$4525,10) -> 586.29 | I28: =ROUND(F28*H28,2) -> 28141.92
A29: 17 | B29: 4.5 | C29: FORNECIMENTO E INSTALAÇÃO DE PLACA DE AÇO PARA IDENTIFICACAO DE RUA, *45 CM X 20* CM, INCLUSIVE SUPORTE EM TUBO DE AÇO GALVANIZADO (02 PLACAS POR SUPORTE) | D29: CPU.5 | E29: UN. | F29: 48 | G29: =VLOOKUP(A29,CPU!$A$1:$N$4525,9) -> 375.29 | H29: =VLOOKUP(A29,CPU!$A$1:$N$4525,10) -> 455.94 | I29: 21885.12
B30: TOTAL GERAL DA OBRA COM BDI | I30: =SUM(I9,I15,I20,I24) -> 1986000.36

Sheet CPU
A1: 1 | B1: CODEVASF | E1: COMPOSIÇÃO DE PREÇO UNITÁRIO | I1: =H10 -> 4047.6 | J1: =H12 -> 4917.42924 | K1: BDI CALCULADO: | M1: =ORÇAMENTO!I6 -> 0.2149
B2: OBRA: | C2: =ORÇAMENTO!C5 -> PAVIMENTAÇÃO EM BLOQUETE - RUAS DIVERSAS - SANTA MARIA DO SALTO/ MG | G2: DATA: | H2: =ORÇAMENTO!C6 -> SETEMBRO/2023
B3: SERVIÇO: | C3: =VLOOKUP(A1,ORÇAMENTO!A10:I26,3) -> MOBILIZAÇÃO E DESMOBILIZAÇÃO | E3: Referência: | F3: =VLOOKUP(A1,ORÇAMENTO!A10:I26,4) -> CPU.1 | G3: UNIDADE: | H3: =VLOOKUP(A1,ORÇAMENTO!A10:I26,5) -> GL
B5: TIPO ITEM | C5: CODIGO ITEM | D5: DESCRIÇÃO ITEM | E5: UNIDADE ITEM | F5: COEFICIENTE | G5: PRECO UNITARIO | H5: CUSTO TOTAL
B6: COMPOSICAO | C6: 5824 | D6: CAMINHÃO TOCO, PBT 16.000 KG, CARGA ÚTIL MÁX. 10.685 KG, DIST. ENTRE EIXOS 4,8 M, POTÊNCIA 189 CV, INCLUSIVE CARROCERIA FIXA ABERTA DE MADEIRA P/ TRANSPORTE GERAL DE CARGA SECA | E6: CHP | F6: 16 | G6: 202,74 | H6: =ROUNDDOWN(F6*G6,2) -> 3243.84
B7: COMPOSICAO | C7: 5826 | D7: CAMINHÃO TOCO, PBT 16.000 KG, CARGA ÚTIL MÁX. 10.685 KG, DIST. ENTRE EIXOS 4,8 M, POTÊNCIA 189 CV, INCLUSIVE CARROCERIA FIXA ABERTA DE MADEIRA P/ TRANSPORTE GERAL DE CARGA SECA | E7: CHI | F7: 8 | G7: 60,95 | H7: =ROUNDDOWN(F7*G7,2) -> 487.6
B8: COMPOSIÇÃO | C8: 88316 | D8: SERVENTE COM ENCARGOS COMPLEMENTARES | E8: H | F8: 16 | G8: 19,76 | H8: 316.16
B9: PRODUÇÃO DA EQUIPE | E9: 1 | F9: CUSTO | H9: =SUM(H6:H8) -> 4047.6
B10: TOTAL | H10: =H9/E9 -> 4047.6 | I10: OK
B11: BDI % | H11: =1+$M$1 -> 1.2149
B12: TOTAL DO SERVIÇO - R$ | H12: =H10*H11 -> 4917.42924
A14: =A1+1 -> 2 | B14: CODEVASF | E14: COMPOSIÇÃO DE PREÇO UNITÁRIO | I14: =H27 -> 70912.31 | J14: =H29 -> 86151.36542
B15: OBRA: | C15: =$C$2 -> PAVIMENTAÇÃO EM BLOQUETE - RUAS DIVERSAS - SANTA MARIA DO SALTO/ MG | G15: DATA: | H15: =$H$2 -> SETEMBRO/2023
B16: SERVIÇO: | C16: =VLOOKUP(A14,ORÇAMENTO!$A$10:$I$26,3) -> ADMINISTRAÇÃO LOCAL | E16: SINAPI | F16: =VLOOKUP(A14,ORÇAMENTO!A10:I26,4,0) -> CPU.2 | G16: UNIDADE: | H16: =VLOOKUP(A14,ORÇAMENTO!$A$10:$I$26,5) -> GL
B18: TIPO ITEM | C18: CODIGO ITEM | D18: DESCRIÇÃO ITEM | E18: UNIDADE ITEM | F18: COEFICIENTE | G18: PRECO UNITARIO | H18: CUSTO TOTAL
B19: INSUMO | C19: 14250 | D19: ENERGIA ELÉTRICA | E19: kwh | F19: 80 | G19: 0,94 | H19: =ROUNDDOWN(F19*G19,2) -> 75.2
B20: INSUMO | C20: 44480 | D20: TARIFA "A" ENTRE 0 E 20 M³ - FORNECIMENTO D'ÁGUA | E20: m³ | F20: 6 | G20: 17,78 | H20: =ROUNDDOWN(F20*G20,2) -> 106.68
B21: COTAÇÃO | C21: MERC. | D21: TELEFONE (PLANO CONTROLE) | E21: UNID | F21: 2 | G21: 60 | H21: 120
B22: COMPOSICAO | C22: 90777 | D22: Engenheiro Civil Júnior com encargos complementares | E22: H | F22: 30 | G22: 114,12 | H22: 3423.6
B23: COMPOSICAO | C23: 90776 | D23: Encarregado Geral com encargos complementares | E23: H | F23: 75 | G23: 57,73 | H23: 4329.75
B24: COMPOSICAO | C24: 88321 | D24: Tecnico de Laboratório com encargos complementares | E24: H | F24: 30 | G24: 45,45 | H24: 1363.5
B25: COMPOSICAO | C25: 90772 | D25: Auxiliar de escritório com encargos complementares | E25: H | F25: 30 | G25: 23.72 | H25: 711.6
B26: PRODUÇÃO DA EQUIPE | E26: =1/7 -> 0.1428571429 | F26: CUSTO | H26: =SUM(H19:H25) -> 10130.33
B27: TOTAL | H27: =H26/E26 -> 70912.31 | I27: OK
B28: BDI % | H28: =1+$M$1 -> 1.2149
B29: TOTAL DO SERVIÇO - R$ | H29: =H27*H28 -> 86151.36542
A31: =A14+1 -> 3 | B31: CODEVASF | E31: COMPOSIÇÃO DE PREÇO UNITÁRIO | I31: =H38 -> 6825 | J31: =H40 -> 8291.6925
B32: OBRA: | C32: =$C$2 -> PAVIMENTAÇÃO EM BLOQUETE - RUAS DIVERSAS - SANTA MARIA DO SALTO/ MG | G32: DATA: | H32: =$H$2 -> SETEMBRO/2023
B33: SERVIÇO: | C33: =VLOOKUP(A31,ORÇAMENTO!$A$10:$I$26,3) -> CANTEIRO DE OBRAS | E33: SINAPI | F33: =VLOOKUP(A31,ORÇAMENTO!$A$10:$I$26,4) -> CPU.3 | G33: UNIDADE: | H33: =VLOOKUP(A31,ORÇAMENTO!$A$10:$I$26,5) -> GL
B35: TIPO ITEM | C35: CODIGO ITEM | D35: DESCRIÇÃO ITEM | E35: UNIDADE ITEM | F35: COEFICIENTE | G35: PRECO UNITARIO | H35: CUSTO TOTAL
B36: COTAÇÃO | C36: 10775 | D36: ALUGUEL DE IMÓVEL OU CONTEINER QUE ATENDA AOS REQUISITOS MÍNIMOS PARA INSTALAÇÃO DO CANTEIRO DE OBRAS | E36: MÊS | F36: 7 | G36: 975 | H36: =ROUNDDOWN(F36*G36,2) -> 6825
B37: PRODUÇÃO DA EQUIPE | E37: 1 | F37: CUSTO | H37: =SUM(H36:H36) -> 6825
B38: TOTAL | H38: =H37/E37 -> 6825 | I38: OK
B39: BDI % | H39: =1+$M$1 -> 1.2149
B40: TOTAL DO SERVIÇO - R$ | H40: =H38*H39 -> 8291.6925
A42: =A31+1 -> 4 | B42: CODEVASF | E42: COMPOSIÇÃO DE PREÇO UNITÁRIO | I42: =H55 -> 307.76 | J42: =H57 -> 373.897624
B43: OBRA: | C43: =$C$2 -> PAVIMENTAÇÃO EM BLOQUETE - RUAS DIVERSAS - SANTA MARIA DO SALTO/ MG | G43: DATA: | H43: =$H$2 -> SETEMBRO/2023
B44: SERVIÇO: | C44: =VLOOKUP(A42,ORÇAMENTO!$A$10:$I$26,3) -> PLACA DE OBRA EM CHAPA DE AÇO GALVANIZADO | E44: SINAPI | F44: =VLOOKUP(A42,ORÇAMENTO!$A$10:$I$26,4) -> 103689a | G44: UNIDADE: | H44: =VLOOKUP(A42,ORÇAMENTO!$A$10:$I$26,5) -> M2
B46: TIPO ITEM | C46: CODIGO ITEM | D46: DESCRIÇÃO ITEM | E46: UNIDADE ITEM | F46: COEFICIENTE | G46: PRECO UNITARIO | H46: CUSTO TOTAL
B47: INSUMO | C47: 4509 | D47: SARRAFO *2,5 X 10* CM EM PINUS, MISTA OU EQUIVALENTE DA REGIAO - BRUTA | E47: M | F47: 3,2083000 | G47: 4,41 | H47: =ROUNDDOWN(F47*G47,2) -> 14.14
B48: INSUMO | C48: 4813 | D48: PLACA DE OBRA (PARA CONSTRUCAO CIVIL) EM CHAPA GALVANIZADA *N. 22*, ADESIVADA, DE *2,4 X 1,2* M (SEM POSTES PARA FIXACAO) | E48: M2 | F48: 1,0000000 | G48: 250,00 | H48: =ROUNDDOWN(F48*G48,2) -> 250
B49: INSUMO | C49: 5065 | D49: PREGO DE ACO POLIDO COM CABECA 10 X 10 (7/8 X 17) | E49: KG | F49: 0,0113000 | G49: 36,57 | H49: 0.41
B50: INSUMO | C50: 5069 | D50: PREGO DE ACO POLIDO COM CABECA 17 X 27 (2 1/2 X 11) | E50: KG | F50: 0,0132000 | G50: 19,59 | H50: 0.25
B51: COMPOSICAO | C51: 88262 | D51: CARPINTEIRO DE FORMAS COM ENCARGOS COMPLEMENTARES | E51: H | F51: 0,3729000 | G51: 27,05 | H51: 10.08
B52: COMPOSICAO | C52: 88316 | D52: SERVENTE COM ENCARGOS COMPLEMENTARES | E52: H | F52: 1,1186000 | G52: 19,76 | H52: 22.1
B53: COMPOSICAO | C53: 4115 | D53: MADEIRA ROLICA TRATADA, D = 12 A 15 CM, H = 3,00 M, EM EUCALIPTO OU EQUIVALENTE | E53: M2 | F53: 0.5 | G53: 21,57 | H53: 10.78
B54: PRODUÇÃO DA EQUIPE | E54: 1 | F54: CUSTO | H54: =SUM(H47:H53) -> 307.76
B55: TOTAL | H55: =H54/E54 -> 307.76 | I55: OK
B56: BDI % | H56: =1+$M$1 -> 1.2149
B57: TOTAL DO SERVIÇO - R$ | H57: =H55*H56 -> 373.897624
A59: =A42+1 -> 5 | B59: CODEVASF | E59: COMPOSIÇÃO DE PREÇO UNITÁRIO | I59: =H66 -> 0.7 | J59: =H68 -> 0.85043
B60: OBRA: | C60: =$C$2 -> PAVIMENTAÇÃO EM BLOQUETE - RUAS DIVERSAS - SANTA MARIA DO SALTO/ MG | G60: DATA: | H60: =$H$2 -> SETEMBRO/2023
B61: SERVIÇO: | C61: =VLOOKUP(A59,ORÇAMENTO!$A$10:$I$26,3) -> LOCAÇÃO DE PAVIMENTAÇÃO | E61: SINAPI | F61: =VLOOKUP(A59,ORÇAMENTO!$A$10:$I$26,4) -> 99064 | G61: UNIDADE: | H61: =VLOOKUP(A59,ORÇAMENTO!$A$10:$I$26,5) -> M
B63: TIPO ITEM | C63: CODIGO ITEM | D63: DESCRIÇÃO ITEM | E63: UNIDADE ITEM | F63: COEFICIENTE | G63: PRECO UNITARIO | H63: CUSTO TOTAL
B64: COMPOSICAO | C64: 99058 | D64: LOCAÇÃO DE PONTO PARA REFERÊNCIA TOPOGRÁFICA | E64: UN | F64: 0,0500000 | G64: 14.14 | H64: =ROUNDDOWN(F64*G64,2) -> 0.7
B65: PRODUÇÃO DA EQUIPE | E65: 1 | F65: CUSTO | H65: =SUM(H64:H64) -> 0.7
B66: TOTAL | H66: =H65/E65 -> 0.7 | I66: OK
B67: BDI % | H67: =1+$M$1 -> 1.2149
B68: TOTAL DO SERVIÇO - R$ | H68: =H66*H67 -> 0.85043
A70: =A59+1 -> 6 | B70: CODEVASF | E70: COMPOSIÇÃO DE PREÇO UNITÁRIO | I70: =H79 -> 2.2 | J70: =H81 -> 2.67278
B71: OBRA: | C71: =$C$2 -> PAVIMENTAÇÃO EM BLOQUETE - RUAS DIVERSAS - SANTA MARIA DO SALTO/ MG | G71: DATA: | H71: =$H$2 -> SETEMBRO/2023
B72: SERVIÇO: | C72: =VLOOKUP(A70,ORÇAMENTO!$A$10:$I$26,3) -> ESCAVAÇÃO HORIZONTAL EM SOLO DE 1A CATEGORIA COM TRATOR DE ESTEIRAS | E72: SINAPI | F72: =VLOOKUP(A70,ORÇAMENTO!$A$10:$I$26,4) -> 101116 | G72: UNIDADE: | H72: =VLOOKUP(A70,ORÇAMENTO!$A$10:$I$26,5) -> M3
B74: TIPO ITEM | C74: CODIGO ITEM | D74: DESCRIÇÃO ITEM | E74: UNIDADE ITEM | F74: COEFICIENTE | G74: PRECO UNITARIO | H74: CUSTO TOTAL
B75: COMPOSICAO | C75: 5847 | D75: TRATOR DE ESTEIRAS, POTÊNCIA 170 HP, PESO OPERACIONAL 19 T, CAÇAMBA 5,2 M3 | E75: CHP | F75: 0,0048000 | G75: 253,93 | H75: =ROUNDDOWN(F75*G75,2) -> 1.21
B76: COMPOSICAO | C76: 5849 | D76: TRATOR DE ESTEIRAS, POTÊNCIA 170 HP, PESO OPERACIONAL 19 T, CAÇAMBA 5,2 M3 | E76: CHI | F76: 0,0082000 | G76: 90,40 | H76: 0.74
B77: COMPOSICAO | C77: 88316 | D77: SERVENTE COM ENCARGOS COMPLEMENTARES | E77: H | F77: 0,0131000 | G77: 19,76 | H77: 0.25
B78: PRODUÇÃO DA EQUIPE | E78: 1 | F78: CUSTO | H78: =SUM(H75:H77) -> 2.2
B79: TOTAL | H79: =H78/E78 -> 2.2 | I79: OK
B80: BDI % | H80: =1+$M$1 -> 1.2149
B81: TOTAL DO SERVIÇO - R$ | H81: =H79*H80 -> 2.67278
A83: 7 | B83: CODEVASF | E83: COMPOSIÇÃO DE PREÇO UNITÁRIO | I83: =H93 -> 8.71 | J83: =H95 -> 10.581779
B84: OBRA: | C84: =$C$2 -> PAVIMENTAÇÃO EM BLOQUETE - RUAS DIVERSAS - SANTA MARIA DO SALTO/ MG | G84: DATA: | H84: =$H$2 -> SETEMBRO/2023
B85: SERVIÇO: | C85: =VLOOKUP(A83,ORÇAMENTO!$A$10:$I$26,3) -> CARGA, MANOBRA E DESCARGA DE SOLOS E MATERIAIS GRANULARES EM CAMINHÃO BASCULANTE - CARGA COM PÁ CARREGADEIRA E DESCARGA LIVRE | E85: SINAPI | F85: =VLOOKUP(A83,ORÇAMENTO!$A$10:$I$26,4) -> 100976 | G85: UNIDADE: | H85: =VLOOKUP(A83,ORÇAMENTO!$A$10:$I$26,5) -> M3
B87: TIPO ITEM | C87: CODIGO ITEM | D87: DESCRIÇÃO ITEM | E87: UNIDADE ITEM | F87: COEFICIENTE | G87: PRECO UNITARIO | H87: CUSTO TOTAL
B88: COMPOSICAO | C88: 5940 | D88: PÁ CARREGADEIRA SOBRE RODAS, POTÊNCIA LÍQUIDA 128 HP, CAPACIDADE DA CAÇAMBA 1,7 A 2,8 M3, PESO OPERACIONAL 11632 KG | E88: CHP | F88: 0,0083000 | G88: 217,72 | H88: =ROUNDDOWN(F88*G88,2) -> 1.8
B89: COMPOSICAO | C89: 5942 | D89: PÁ CARREGADEIRA SOBRE RODAS, POTÊNCIA LÍQUIDA 128 HP, CAPACIDADE DA CAÇAMBA 1,7 A 2,8 M3, PESO OPERACIONAL 11632 KG | E89: CHI | F89: 0,0074000 | G89: 95,85 | H89: 0.7
B90: COMPOSICAO | C90: 89883 | D90: CAMINHÃO BASCULANTE 18 M3, COM CAVALO MECÂNICO DE CAPACIDADE MÁXIMA DE TRAÇÃO COMBINADO DE 45000 KG, POTÊNCIA 330 CV, INCLUSIVE SEMIREBOQUE COM CAÇAMBA METÁLICA | E90: CHP | F90: 0,0153000 | G90: 348,45 | H90: 5.33
B91: COMPOSICAO | C91: 89884 | D91: CAMINHÃO BASCULANTE 18 M3, COM CAVALO MECÂNICO DE CAPACIDADE MÁXIMA DE TRAÇÃO COMBINADO DE 45000 KG, POTÊNCIA 330 CV, INCLUSIVE SEMIREBOQUE COM CAÇAMBA METÁLICA | E91: CHI | F91: 0,0095000 | G91: 93,65 | H91: 0.88
B92: PRODUÇÃO DA EQUIPE | E92: 1 | F92: CUSTO | H92: =SUM(H88:H91) -> 8.71
B93: TOTAL | H93: =H92/E92 -> 8.71 | I93: OK
B94: BDI % | H94: =1+$M$1 -> 1.2149
B95: TOTAL DO SERVIÇO - R$ | H95: =H93*H94 -> 10.581779
A97: 8 | B97: CODEVASF | E97: COMPOSIÇÃO DE PREÇO UNITÁRIO | I97: =H110 -> 2.57 | J97: =H112 -> 3.122293
B98: OBRA: | C98: =$C$2 -> PAVIMENTAÇÃO EM BLOQUETE - RUAS DIVERSAS - SANTA MARIA DO SALTO/ MG | G98: DATA: | H98: =$H$2 -> SETEMBRO/2023
B99: SERVIÇO: | C99: =VLOOKUP(A97,ORÇAMENTO!$A$10:$I$26,3) -> REGULARIZAÇÃO E COMPACTAÇÃO DE SUBLEITO | E99: SINAPI | F99: =VLOOKUP(A97,ORÇAMENTO!$A$10:$I$26,4) -> 100576 | G99: UNIDADE: | H99: =VLOOKUP(A97,ORÇAMENTO!$A$10:$I$26,5) -> M2
B101: TIPO ITEM | C101: CODIGO ITEM | D101: DESCRIÇÃO ITEM | E101: UNIDADE ITEM | F101: COEFICIENTE | G101: PRECO UNITARIO | H101: CUSTO TOTAL
B102: COMPOSICAO | C102: 5901 | D102: CAMINHÃO PIPA 10.000 L TRUCADO, PESO BRUTO TOTAL 23.000 KG, CARGA ÚTIL MÁXIMA 15.935 KG, DISTÂNCIA ENTRE EIXOS 4,8 M, POTÊNCIA 230 CV, INCLUSIVE TANQUE DE AÇO PARA TRANSPORTE DE ÁGUA | E102: CHP | F102: 0,0010000 | G102: 294,94 | H102: =ROUNDDOWN(F102*G102,2) -> 0.29
B103: COMPOSICAO | C103: 5903 | D103: CAMINHÃO PIPA 10.000 L TRUCADO, PESO BRUTO TOTAL 23.000 KG, CARGA ÚTIL MÁXIMA 15.935 KG, DISTÂNCIA ENTRE EIXOS 4,8 M, POTÊNCIA 230 CV, INCLUSIVE TANQUE DE AÇO PARA TRANSPORTE DE ÁGUA | E103: CHI | F103: 0,0070000 | G103: 72,55 | H103: 0.5
B104: COMPOSICAO | C104: 5932 | D104: MOTONIVELADORA POTÊNCIA BÁSICA LÍQUIDA (PRIMEIRA MARCHA) 125 HP, PESO BRUTO 13032 KG, LARGURA DA LÂMINA DE 3,7 M | E104: CHP | F104: 0,0001000 | G104: 262,71 | H104: 0.02
B105: COMPOSICAO | C105: 5934 | D105: MOTONIVELADORA POTÊNCIA BÁSICA LÍQUIDA (PRIMEIRA MARCHA) 125 HP, PESO BRUTO 13032 KG, LARGURA DA LÂMINA DE 3,7 M | E105: CHI | F105: 0,0080000 | G105: 109,40 | H105: 0.87
B106: COMPOSICAO | C106: 73436 | D106: ROLO COMPACTADOR VIBRATÓRIO PÉ DE CARNEIRO PARA SOLOS, POTÊNCIA 80 HP, PESO OPERACIONAL SEM/COM LASTRO 7,4 / 8,8 T, LARGURA DE TRABALHO 1,68 M | E106: CHP | F106: 0,0020000 | G106: 163,19 | H106: 0.32
B107: COMPOSICAO | C107: 88316 | D107: SERVENTE COM ENCARGOS COMPLEMENTARES | E107: H | F107: 0,0080000 | G107: 19,76 | H107: 0.15
B108: COMPOSICAO | C108: 93244 | D108: ROLO COMPACTADOR VIBRATÓRIO PÉ DE CARNEIRO PARA SOLOS, POTÊNCIA 80 HP, PESO OPERACIONAL SEM/COM LASTRO 7,4 / 8,8 T, LARGURA DE TRABALHO 1,68 M | E108: CHI | F108: 0,0060000 | G108: 71,18 | H108: 0.42
B109: PRODUÇÃO DA EQUIPE | E109: 1 | F109: CUSTO | H109: =SUM(H102:H108) -> 2.57
B110: TOTAL | H110: =H109/E109 -> 2.57 | I110: OK
B111: BDI % | H111: =1+$M$1 -> 1.2149
B112: TOTAL DO SERVIÇO - R$ | H112: =H110*H111 -> 3.122293
A114: 9 | B114: CODEVASF | E114: COMPOSIÇÃO DE PREÇO UNITÁRIO | I114: =H129 -> 73.52 | J114: =H131 -> 89.319448
B115: OBRA: | C115: =$C$2 -> PAVIMENTAÇÃO EM BLOQUETE - RUAS DIVERSAS - SANTA MARIA DO SALTO/ MG | G115: DATA: | H115: =$H$2 -> SETEMBRO/2023
B116: SERVIÇO: | C116: =VLOOKUP(A114,ORÇAMENTO!$A$10:$I$26,3) -> EXECUÇÃO DE PAVIMENTO EM PISO INTERTRAVADO, COM BLOCO SEXTAVADO DE CONCRETO DE 25 X 25 CM, ESPESSURA 8 CM | E116: SINAPI | F116: =VLOOKUP(A114,ORÇAMENTO!$A$10:$I$26,4) -> 92394a | G116: UNIDADE: | H116: =VLOOKUP(A114,ORÇAMENTO!$A$10:$I$26,5) -> M2
B118: TIPO ITEM | C118: CODIGO ITEM | D118: DESCRIÇÃO ITEM | E118: UNIDADE ITEM | F118: COEFICIENTE | G118: PRECO UNITARIO | H118: CUSTO TOTAL
B119: INSUMO | C119: 370 | D119: AREIA MEDIA - POSTO JAZIDA/FORNECEDOR (RETIRADO NA JAZIDA, SEM TRANSPORTE) | E119: M3 | F119: 0,0568000 | G119: 97.5 | H119: =ROUNDDOWN(F119*G119,2) -> 5.53
B120: INSUMO | C120: 712 | D120: BLOQUETE/PISO INTERTRAVADO DE CONCRETO - MODELO SEXTAVADO / HEXAGONAL, 25 CM X 25 CM, E = 8 CM, RESISTENCIA DE 35 MPA (NBR 9781), COR NATURAL | E120: M2 | F120: 1,0038000 | G120: 60 | H120: 60.22
B121: INSUMO | C121: 4741 | D121: PO DE PEDRA (POSTO PEDREIRA/FORNECEDOR, SEM FRETE) | E121: M3 | F121: 0,0066000 | G121: 111,12 | H121: 0.73
B122: COMPOSICAO | C122: 88260 | D122: CALCETEIRO COM ENCARGOS COMPLEMENTARES | E122: H | F122: 0,1683000 | G122: 21,06 | H122: 3.54
B123: COMPOSICAO | C123: 88316 | D123: SERVENTE COM ENCARGOS COMPLEMENTARES | E123: H | F123: 0,1683000 | G123: 19,76 | H123: 3.32
B124: COMPOSICAO | C124: 91277 | D124: PLACA VIBRATÓRIA REVERSÍVEL COM MOTOR 4 TEMPOS A GASOLINA, FORÇA CENTRÍFUGA DE 25 KN (2500 KGF), POTÊNCIA 5,5 CV | E124: CHP | F124: 0,0055000 | G124: 8,77 | H124: 0.04
B125: COMPOSICAO | C125: 91278 | D125: PLACA VIBRATÓRIA REVERSÍVEL COM MOTOR 4 TEMPOS A GASOLINA, FORÇA CENTRÍFUGA DE 25 KN (2500 KGF), POTÊNCIA 5,5 CV | E125: CHI | F125: 0,0787000 | G125: 0,52 | H125: 0.04
B126: COMPOSICAO | C126: 91283 | D126: CORTADORA DE PISO COM MOTOR 4 TEMPOS A GASOLINA, POTÊNCIA DE 13 HP, COM DISCO DE CORTE DIAMANTADO SEGMENTADO PARA CONCRETO, DIÂMETRO DE 350 MM, FURO DE 1" (14 X 1") | E126: CHP | F126: 0,0038000 | G126: 9,69 | H126: 0.03
B127: COMPOSICAO | C127: 91285 | D127: CORTADORA DE PISO COM MOTOR 4 TEMPOS A GASOLINA, POTÊNCIA DE 13 HP, COM DISCO DE CORTE DIAMANTADO SEGMENTADO PARA CONCRETO, DIÂMETRO DE 350 MM, FURO DE 1" (14 X 1") | E127: CHI | F127: 0,0804000 | G127: 0,92 | H127: 0.07
B128: PRODUÇÃO DA EQUIPE | E128: 1 | F128: CUSTO | H128: =SUM(H119:H127) -> 73.52
B129: TOTAL | H129: =H128/E128 -> 73.52 | I129: OK
B130: BDI % | H130: =1+$M$1 -> 1.2149
B131: TOTAL DO SERVIÇO - R$ | H131: =H129*H130 -> 89.319448
A133: 10 | B133: CODEVASF | E133: COMPOSIÇÃO DE PREÇO UNITÁRIO | I133: =H142 -> 1.41 | J133: =H144 -> 1.713009
B134: OBRA: | C134: =$C$2 -> PAVIMENTAÇÃO EM BLOQUETE - RUAS DIVERSAS - SANTA MARIA DO SALTO/ MG | G134: DATA: | H134: =$H$2 -> SETEMBRO/2023
B135: SERVIÇO: | C135: =VLOOKUP(A133,ORÇAMENTO!$A$10:$I$26,3) -> TRANSPORTE COM CAMINHÃO BASCULANTE, EM VIA URBANA EM REVESTIMENTO PRIMÁRIO | E135: SINAPI | F135: =VLOOKUP(A133,ORÇAMENTO!$A$10:$I$26,4) -> 95426 | G135: UNIDADE: | H135: =VLOOKUP(A133,ORÇAMENTO!$A$10:$I$26,5) -> M3XKM
B137: TIPO ITEM | C137: CODIGO ITEM | D137: DESCRIÇÃO ITEM | E137: UNIDADE ITEM | F137: COEFICIENTE | G137: PRECO UNITARIO | H137: CUSTO TOTAL
B138: COMPOSICAO | C138: 89883a | D138: CAMINHÃO BASCULANTE 18 M3, COM CAVALO MECÂNICO DE CAPACIDADE MÁXIMA DE TRAÇÃO COMBINADO DE 45000 KG, POTÊNCIA 330 CV, INCLUSIVE SEMIREBOQUE COM CAÇAMBA METÁLICA | E138: CHP | F138: 0.0035 | G138: 348,45 | H138: =ROUNDDOWN(F138*G138,2) -> 1.21
B139: COMPOSICAO | C139: 89884 | D139: CAMINHÃO BASCULANTE 18 M3, COM CAVALO MECÂNICO DE CAPACIDADE MÁXIMA DE TRAÇÃO COMBINADO DE 45000 KG, POTÊNCIA 330 CV, INCLUSIVE SEMIREBOQUE COM CAÇAMBA METÁLICA | E139: CHI | F139: 0,0022000 | G139: 93,65 | H139: 0.2
H140: =F140*G140 -> 0
B141: PRODUÇÃO DA EQUIPE | E141: 1 | F141: CUSTO | H141: =SUM(H138:H140) -> 1.41
B142: TOTAL | H142: =H141/E141 -> 1.41 | I142: OK
B143: BDI % | H143: =1+$M$1 -> 1.2149
B144: TOTAL DO SERVIÇO - R$ | H144: =H142*H143 -> 1.713009
A146: 11 | B146: CODEVASF | E146: COMPOSIÇÃO DE PREÇO UNITÁRIO | I146: =H155 -> 0.73 | J146: =H157 -> 0.886877
B147: OBRA: | C147: =$C$2 -> PAVIMENTAÇÃO EM BLOQUETE - RUAS DIVERSAS - SANTA MARIA DO SALTO/ MG | G147: DATA: | H147: =$H$2 -> SETEMBRO/2023
B148: SERVIÇO: | C148: =VLOOKUP(A146,ORÇAMENTO!$A$10:$I$26,3) -> TRANSPORTE COM CAMINHÃO BASCULANTE, EM VIA URBANA PAVIMENTADA | E148: SINAPI | F148: =VLOOKUP(A146,ORÇAMENTO!$A$10:$I$26,4) -> 95427 | G148: UNIDADE: | H148: =VLOOKUP(A146,ORÇAMENTO!$A$10:$I$26,5) -> M3XKM
B150: TIPO ITEM | C150: CODIGO ITEM | D150: DESCRIÇÃO ITEM | E150: UNIDADE ITEM | F150: COEFICIENTE | G150: PRECO UNITARIO | H150: CUSTO TOTAL
B151: COMPOSICAO | C151: 89883 | D151: CAMINHÃO BASCULANTE 18 M3, COM CAVALO MECÂNICO DE CAPACIDADE MÁXIMA DE TRAÇÃO COMBINADO DE 45000 KG, POTÊNCIA 330 CV, INCLUSIVE SEMIREBOQUE COM CAÇAMBA METÁLICA - CHP DIURNO. AF_12/2014 | E151: CHP | F151: 0,0019000 | G151: 348,45 | H151: =ROUNDDOWN(F151*G151,2) -> 0.66
B152: COMPOSICAO | C152: 89884 | D152: CAMINHÃO BASCULANTE 18 M3, COM CAVALO MECÂNICO DE CAPACIDADE MÁXIMA DE TRAÇÃO COMBINADO DE 45000 KG, POTÊNCIA 330 CV, INCLUSIVE SEMIREBOQUE COM CAÇAMBA METÁLICA - CHI DIURNO. AF_12/2014 | E152: CHI | F152: 0,0008000 | G152: 93,65 | H152: 0.07
H153: =F153*G153 -> 0
B154: PRODUÇÃO DA EQUIPE | E154: 1 | F154: CUSTO | H154: =SUM(H151:H153) -> 0.73
B155: TOTAL | H155: =H154/E154 -> 0.73 | I155: OK
B156: BDI % | H156: =1+$M$1 -> 1.2149
B157: TOTAL DO SERVIÇO - R$ | H157: =H155*H156 -> 0.886877
A159: 12 | B159: CODEVASF | E159: COMPOSIÇÃO DE PREÇO UNITÁRIO | I159: =H168 -> 0.63 | J159: =H170 -> 0.765387
B160: OBRA: | C160: =$C$2 -> PAVIMENTAÇÃO EM BLOQUETE - RUAS DIVERSAS - SANTA MARIA DO SALTO/ MG | G160: DATA: | H160: =$H$2 -> SETEMBRO/2023
B161: SERVIÇO: | C161: =VLOOKUP(A159,ORÇAMENTO!$A$10:$I$26,3) -> TRANSPORTE COM CAMINHÃO CARROCERIA, EM VIA URBANA PAVIMENTADA | E161: SINAPI | F161: =VLOOKUP(A159,ORÇAMENTO!$A$10:$I$26,4) -> 100948 | G161: UNIDADE: | H161: =VLOOKUP(A159,ORÇAMENTO!$A$10:$I$26,5) -> TXKM
B163: TIPO ITEM | C163: CODIGO ITEM | D163: DESCRIÇÃO ITEM | E163: UNIDADE ITEM | F163: COEFICIENTE | G163: PRECO UNITARIO | H163: CUSTO TOTAL
B164: COMPOSICAO | C164: 5824a | D164: CAMINHÃO TOCO, PBT 16.000 KG, CARGA ÚTIL MÁX. 10.685 KG, DIST. ENTRE EIXOS 4,8 M, POTÊNCIA 189 CV, INCLUSIVE CARROCERIA FIXA ABERTA DE MADEIRA P/ TRANSPORTE GERAL DE CARGA SECA | E164: CHP | F164: 0.0027 | G164: 202,74 | H164: =ROUNDDOWN(F164*G164,2) -> 0.54
B165: COMPOSICAO | C165: 5826 | D165: CAMINHÃO TOCO, PBT 16.000 KG, CARGA ÚTIL MÁX. 10.685 KG, DIST. ENTRE EIXOS 4,8 M, POTÊNCIA 189 CV, INCLUSIVE CARROCERIA FIXA ABERTA DE MADEIRA P/ TRANSPORTE GERAL DE CARGA SECA | E165: CHI | F165: 0,0016000 | G165: 60,95 | H165: 0.09
H166: =F166*G166 -> 0
B167: PRODUÇÃO DA EQUIPE | E167: 1 | F167: CUSTO | H167: =SUM(H164:H166) -> 0.63
B168: TOTAL | H168: =H167/E167 -> 0.63 | I168: OK
B169: BDI % | H169: =1+$M$1 -> 1.2149
B170: TOTAL DO SERVIÇO - R$ | H170: =H168*H169 -> 0.765387
A172: 13 | B172: CODEVASF | E172: COMPOSIÇÃO DE PREÇO UNITÁRIO | I172: =H184 -> 45.68 | J172: =H186 -> 55.496632
B173: OBRA: | C173: =$C$2 -> PAVIMENTAÇÃO EM BLOQUETE - RUAS DIVERSAS - SANTA MARIA DO SALTO/ MG | G173: DATA: | H173: =$H$2 -> SETEMBRO/2023
B174: SERVIÇO: | C174: =VLOOKUP(A172,ORÇAMENTO!$A$10:$I$26,3) -> ASSENTAMENTO DE GUIA (MEIO-FIO) EM TRECHO RETO, CONFECCIONADA EM CONCRETO PRÉ-FABRICADO, DIMENSÕES 100X12X10X30 CM (COMPRIMENTO X BASE INFERIOR X BASE SUPERIOR X ALTURA) | E174: SINAPI | F174: =VLOOKUP(A172,ORÇAMENTO!$A$10:$I$26,4) -> 94273a | G174: UNIDADE: | H174: =VLOOKUP(A172,ORÇAMENTO!$A$10:$I$26,5) -> M
B176: TIPO ITEM | C176: CODIGO ITEM | D176: DESCRIÇÃO ITEM | E176: UNIDADE ITEM | F176: COEFICIENTE | G176: PRECO UNITARIO | H176: CUSTO TOTAL
B177: INSUMO | C177: 370 | D177: AREIA MEDIA - POSTO JAZIDA/FORNECEDOR (RETIRADO NA JAZIDA, SEM TRANSPORTE) | E177: M3 | F177: 0,0070000 | G177: 97.5 | H177: =ROUNDDOWN(F177*G177,2) -> 0.68
B178: INSUMO | C178: COTAÇÃO | D178: MEIO-FIO OU GUIA DE CONCRETO, PRE-MOLDADO, COMP 1 M, *30 X 10/12* CM (H X L1/L2) | E178: M | F178: 1,0050000 | G178: =20/0.8 -> 25 | H178: 25.12
B179: COMPOSICAO | C179: 88309 | D179: PEDREIRO COM ENCARGOS COMPLEMENTARES | E179: H | F179: 0,3940000 | G179: 27,45 | H179: 10.81
B180: COMPOSICAO | C180: 88316 | D180: SERVENTE COM ENCARGOS COMPLEMENTARES | E180: H | F180: 0,3940000 | G180: 19,76 | H180: 7.78
B181: COMPOSICAO | C181: 88629 | D181: ARGAMASSA TRAÇO 1:3 (EM VOLUME DE CIMENTO E AREIA MÉDIA ÚMIDA), PREPARO MANUAL. AF_08/2019 | E181: M3 | F181: 0,0020000 | G181: 645,53 | H181: 1.29
B183: PRODUÇÃO DA EQUIPE | E183: 1 | F183: CUSTO | H183: =SUM(H177:H181) -> 45.68
B184: TOTAL | H184: =H183/E183 -> 45.68 | I184: OK
B185: BDI % | H185: =1+$M$1 -> 1.2149
B186: TOTAL DO SERVIÇO - R$ | H186: =H184*H185 -> 55.496632
A188: 14 | B188: CODEVASF | E188: COMPOSIÇÃO DE PREÇO UNITÁRIO | I188: =H201 -> 34.83 | J188: =H203 -> 42.314967
B189: OBRA: | C189: =$C$2 -> PAVIMENTAÇÃO EM BLOQUETE - RUAS DIVERSAS - SANTA MARIA DO SALTO/ MG | G189: DATA: | H189: =$H$2 -> SETEMBRO/2023
B190: SERVIÇO: | C190: =VLOOKUP(A188,ORÇAMENTO!$A$10:$I$26,3) -> EXECUÇÃO DE SARJETA DE CONCRETO USINADO, MOLDADA IN LOCO EM TRECHO RETO, 30 CM BASE X 5 CM ALTURA | E190: SINAPI | F190: =VLOOKUP(A188,ORÇAMENTO!$A$10:$I$26,4) -> 94287a | G190: UNIDADE: | H190: =VLOOKUP(A188,ORÇAMENTO!$A$10:$I$26,5) -> M
B192: TIPO ITEM | C192: CODIGO ITEM | D192: DESCRIÇÃO ITEM | E192: UNIDADE ITEM | F192: COEFICIENTE | G192: PRECO UNITARIO | H192: CUSTO TOTAL
B193: INSUMO | C193: 370 | D193: AREIA MEDIA - POSTO JAZIDA/FORNECEDOR (RETIRADO NA JAZIDA, SEM TRANSPORTE) | E193: M3 | F193: 0,0100000 | G193: 97,50 | H193: =ROUNDDOWN(F193*G193,2) -> 0.97
B194: INSUMO | C194: 4517 | D194: SARRAFO *2,5 X 7,5* CM EM PINUS, MISTA OU EQUIVALENTE DA REGIAO - BRUTA | E194: M | F194: 0,2000000 | G194: 3,04 | H194: 0.6
B195: INSUMO | C195: 6189 | D195: TABUA NAO APARELHADA *2,5 X 30* CM, EM MACARANDUBA/MASSARANDUBA, ANGELIM OU EQUIVALENTE DA REGIAO - BRUTA | E195: M | F195: 0,0830000 | G195: 43,21 | H195: 3.58
B196: INSUMO | C196: 34492a | D196: CONCRETO USINADO BOMBEAVEL, CLASSE DE RESISTENCIA C20, COM BRITA 0 E 1, SLUMP = 100 +/- 20 MM, EXCLUI SERVICO DE BOMBEAMENTO (NBR 8953) | E196: M3 | F196: =(0.3*0.05) -> 0.015 | G196: 550,00 | H196: 8.25
B197: COMPOSICAO | C197: 88309 | D197: PEDREIRO COM ENCARGOS COMPLEMENTARES | E197: H | F197: 0,4540000 | G197: 27,45 | H197: 12.46
B198: COMPOSICAO | C198: 88316 | D198: SERVENTE COM ENCARGOS COMPLEMENTARES | E198: H | F198: 0,4540000 | G198: 19,76 | H198: 8.97
B200: PRODUÇÃO DA EQUIPE | E200: 1 | F200: CUSTO | H200: =SUM(H193:H198) -> 34.83
B201: TOTAL | H201: =H200/E200 -> 34.83 | I201: OK
B202: BDI % | H202: =1+$M$1 -> 1.2149
B203: TOTAL DO SERVIÇO - R$ | H203: =H201*H202 -> 42.314967
A205: 15 | B205: CODEVASF | E205: COMPOSIÇÃO DE PREÇO UNITÁRIO | I205: =H220 -> 724.46 | J205: =H222 -> 880.146454
B206: OBRA: | C206: =$C$2 -> PAVIMENTAÇÃO EM BLOQUETE - RUAS DIVERSAS - SANTA MARIA DO SALTO/ MG | G206: DATA: | H206: =$H$2 -> SETEMBRO/2023
B207: SERVIÇO: | C207: =VLOOKUP(A205,ORÇAMENTO!$A$10:$I$29,3) -> EXECUÇÃO DE PASSEIO (CALÇADA) OU PISO DE CONCRETO COM CONCRETO MOLDADO IN LOCO, FEITO EM OBRA, ACABAMENTO CONVENCIONAL, NÃO ARMADO - 6CM ESPESSURA. | E207: SINAPI | F207: =VLOOKUP(A205,ORÇAMENTO!$A$10:$I$29,4) -> 94990 | G207: UNIDADE: | H207: =VLOOKUP(A205,ORÇAMENTO!$A$10:$I$29,5) -> M3
B209: TIPO ITEM | C209: CODIGO ITEM | D209: DESCRIÇÃO ITEM | E209: UNIDADE ITEM | F209: COEFICIENTE | G209: PRECO UNITARIO | H209: CUSTO TOTAL
B210: INSUMO | C210: 2692 | D210: DESMOLDANTE PROTETOR PARA FORMAS DE MADEIRA, DE BASE OLEOSA EMULSIONADA EM AGUA | E210: L | F210: 0,0213000 | G210: 5,92 | H210: =ROUNDDOWN(F210*G210,2) -> 0.12
B211: INSUMO | C211: 4509 | D211: SARRAFO *2,5 X 10* CM EM PINUS, MISTA OU EQUIVALENTE DA REGIAO - BRUTA | E211: M | F211: 3,1250000 | G211: 4,41 | H211: =ROUNDDOWN(F211*G211,2) -> 13.78
B212: INSUMO | C212: 4517 | D212: SARRAFO *2,5 X 7,5* CM EM PINUS, MISTA OU EQUIVALENTE DA REGIAO - BRUTA | E212: M | F212: 2,5000000 | G212: 3,04 | H212: 7.6
B213: INSUMO | C213: 5068 | D213: PREGO DE ACO POLIDO COM CABECA 17 X 21 (2 X 11) | E213: KG | F213: 0,2994000 | G213: 19,23 | H213: 5.75
B214: COMPOSICAO | C214: 88262 | D214: CARPINTEIRO DE FORMAS COM ENCARGOS COMPLEMENTARES | E214: H | F214: 1,6268000 | G214: 27,05 | H214: 44
B215: COMPOSICAO | C215: 88309 | D215: PEDREIRO COM ENCARGOS COMPLEMENTARES | E215: H | F215: 1,4149000 | G215: 27,45 | H215: 38.83
B216: COMPOSICAO | C216: 88316 | D216: SERVENTE COM ENCARGOS COMPLEMENTARES | E216: H | F216: 3,0417000 | G216: 19,76 | H216: 60.1
B217: COMPOSICAO | C217: 94964a | D217: CONCRETO FCK = 20MPA, TRAÇO 1:2,7:3 (EM MASSA SECA DE CIMENTO/ AREIA MÉDIA/ BRITA 1) - PREPARO MECÂNICO COM BETONEIRA 400 L. | E217: M3 | F217: 1.1315 | G217: 489,87 | H217: 554.28
B219: PRODUÇÃO DA EQUIPE | E219: 1 | F219: CUSTO | H219: =SUM(H210:H218) -> 724.46
B220: TOTAL | H220: =H219/E219 -> 724.46
B221: BDI % | H221: =1+$M$1 -> 1.2149
B222: TOTAL DO SERVIÇO - R$ | H222: =H220*H221 -> 880.146454
A224: 16 | B224: CODEVASF | E224: COMPOSIÇÃO DE PREÇO UNITÁRIO | I224: =H237 -> 482.58 | J224: =H239 -> 586.29
B225: OBRA: | C225: =$C$2 -> PAVIMENTAÇÃO EM BLOQUETE - RUAS DIVERSAS - SANTA MARIA DO SALTO/ MG | G225: DATA: | H225: =$H$2 -> SETEMBRO/2023
B226: SERVIÇO: | C226: =VLOOKUP(A224,ORÇAMENTO!$A$10:$I$29,3) -> FORNECIMENTO E INSTALAÇÃO DE PLACA DE SINALIZAÇÃO VIÁRIA - REGULAMENTAÇÃO (PARE) | E226: SINAPI | F226: =VLOOKUP(A224,ORÇAMENTO!$A$10:$I$29,4) -> CPU.4 | G226: UNIDADE: | H226: =VLOOKUP(A224,ORÇAMENTO!$A$10:$I$29,5) -> UN.
B228: TIPO ITEM | C228: CODIGO ITEM | D228: DESCRIÇÃO ITEM | E228: UNIDADE ITEM | F228: COEFICIENTE | G228: PRECO UNITARIO | H228: CUSTO TOTAL
B229: COMPOSICAO | C229: 94962 | D229: CONCRETO MAGRO PARA LASTRO, TRAÇO 1:4,5:4,5 (EM MASSA SECA DE CIMENTO/ AREIA/ BRITA 1) | E229: M3 | F229: 0.024 | G229: 397.46 | H229: =ROUNDDOWN(F229*G229,2) -> 9.53
B230: COMPOSICAO | C230: 93358 | D230: ESCAVAÇÃO MANUAL DE VALA COM PROFUNDIDADE MENOR OU IGUAL A 1,30 M | E230: M3 | F230: 0.024 | G230: 78.17 | H230: 1.87
B231: COMPOSICAO | C231: 88309 | D231: PEDREIRO COM ENCARGOS COMPLEMENTARES | E231: H | F231: 0.2 | G231: 27.45 | H231: 5.49
B232: COMPOSICAO | C232: 88316 | D232: SERVENTE COM ENCARGOS COMPLEMENTARES | E232: H | F232: 1 | G232: 19.76 | H232: 19.76
B233: COMPOSICAO | C233: 103670 | D233: LANÇAMENTO COM USO DE BALDES, ADENSAMENTO E ACABAMENTO DE CONCRETO EM ESTRUTURAS | E233: M3 | F233: 0.024 | G233: 281.66 | H233: 6.75
B234: INSUMO | C234: 34723 | D234: PLACA DE SINALIZACAO EM CHAPA DE ACO NUM 16 COM PINTURA REFLETIVA | E234: M2 | F234: =4*0.3*0.25 -> 0.3 | G234: 577.5 | H234: 173.25
... 20 more rows

Sheet BDI SERV
B1: DETALHAMENTO DO BDI - SERVIÇOS
B4: Item | C4: Descrição dos Serviços | D4: % | E4: %
D5: PV | E5: CD
B7: 1 | C7: ADMINISTRAÇÃO CENTRAL | E7: 4.01
B8: 1.1 | C8: ESCRITÓRIO CENTRAL
B9: 1.2 | C9: VIAGENS
B10: 1.3 | C10: OUTROS
B12: 2 | C12: IMPOSTOS E TAXAS | D12: =SUM(D13:D15) -> 5.65 | E12: =SUM(E13:E15) -> 7.06
B13: 2.1 | C13: ISS (*) | D13: =5*0.4 -> 2 | E13: =ROUND(D13*1.2515,2) -> 2.5
B14: 2.2 | C14: PIS | D14: 0.65 | E14: 0.81
B15: 2.3 | C15: Cofins | D15: 3 | E15: 3.75
B17: 3 | C17: TAXA DE RISCO | E17: =SUM(E18:E21) -> 0.96
B18: 3.1 | C18: SEGURO | E18: 0.2
B19: 3.2 | C19: RISCO | E19: 0.56
B20: 3.3 | C20: GARANTIA | E20: 0.2
B22: 4 | C22: DESPESAS FINANCEIRAS | E22: 1.11
B24: 5 | C24: LUCRO | E24: 8
C26: BDI - CALCULADO | E26: =ROUND((((1+(E7+E17)/100)*(1+E22/100)*(1+E24/100)/(1-D12/100)-1)*100),2) -> 21.49
A28: BDI = ((1+((AC+S+R+G)/100))x(1+DF/100)x(1+L/100)/(1-I/100)-1)*100
B30: BDI (CALCULADO): | D30: =ROUND((((1+((E7+E17)/100))*(1+E22/100)*(1+E24/100))/(1-D12/100)-1)*100,2) -> 21.49 | E30: %
A32: (*) ISS CONFORME DECLARAÇÃO DO MUNICÍPIO (EM ANEXO) QUANT. ESTIMADA DE MATERIAIS = 60%
A36: BDI EM CONFORMIDADE COM OS ACÓRDÃOS Nº 2369/2011 e ACÓRDÃO Nº 2.622/2013 - TCU - PLENÁRIO

Sheet CRONOGRAMA
B1: CRONOGRAMA FÍSICO-FINANCEIRO
B2: OBRA: | C2: =ORÇAMENTO!C5 -> PAVIMENTAÇÃO EM BLOQUETE - RUAS DIVERSAS - SANTA MARIA DO SALTO/ MG | F2: VALOR: | G2: =ORÇAMENTO!I30 -> 1986000.36
F3: PRAZO: | G3: 210 DIAS
B5: ITEM | C5: ETAPAS/DESCRIÇAO | D5: FISICO/ FINANCEIRO | E5: TOTAL ETAPAS | F5: MÊS 1 | G5: MÊS 2 | H5: MÊS 3 | I5: MÊS 4 | J5: MÊS 5 | K5: MÊS 6 | L5: MÊS 7 | M5: TOTAL
A6: A | B6: =VLOOKUP(A6,ORÇAMENTO!$A$9:$I$30,2) -> 1 | C6: =VLOOKUP(A6,ORÇAMENTO!$A$9:$I$30,3) -> SERVIÇOS PRELIMINARES | D6: FISICO | E6: =ROUND(E7/$G$2,4) -> 0.0515 | F6: 0.2 | G6: 0.125 | H6: 0.15 | I6: 0.15 | J6: 0.1 | K6: 0.1 | L6: 0.175 | M6: =SUM(F6:L6) -> 1
D7: FINANCEIRO | E7: =ORÇAMENTO!I9 -> 102234.37 | F7: =ROUND($E$7*F6,2) -> 20446.87 | G7: 12779.3 | H7: 15335.16 | I7: 15335.16 | J7: 10223.44 | K7: 10223.44 | L7: 17891.01 | M7: =SUM(F7:L7)+0.01 -> 102234.39
A8: B | B8: =VLOOKUP(A8,ORÇAMENTO!$A$9:$I$30,2) -> 2 | C8: =VLOOKUP(A8,ORÇAMENTO!$A$9:$I$30,3) -> PAVIMENTAÇÃO | D8: FISICO | E8: =ROUND(E9/$G$2,4) -> 0.5834 | F8: 0.15 | G8: 0.125 | H8: 0.175 | I8: 0.2 | J8: 0.15 | K8: 0.125 | L8: 0.075 | M8: =SUM(F8:L8) -> 1
D9: FINANCEIRO | E9: =ORÇAMENTO!I15 -> 1158727.88 | F9: =ROUND($E$9*F8,2) -> 173809.18 | G9: 144840.99 | H9: 202777.38 | I9: 231745.58 | J9: 173809.18 | K9: 144840.99 | L9: 86904.59 | M9: =SUM(F9:L9) -> 1158727.89
A10: C | B10: =VLOOKUP(A10,ORÇAMENTO!$A$9:$I$30,2) -> 3 | C10: =VLOOKUP(A10,ORÇAMENTO!$A$9:$I$30,3) -> TRANSPORTE DE MATERIAIS | D10: FISICO | E10: =ROUND(E11/$G$2,4) -> 0.0112 | F10: 0.15 | G10: 0.15 | H10: 0.15 | I10: 0.15 | J10: 0.125 | K10: 0.125 | L10: 0.15 | M10: =SUM(F10:L10) -> 1
D11: FINANCEIRO | E11: =ORÇAMENTO!I20 -> 22305.56 | F11: =ROUND($E$11*F10,2) -> 3345.83 | G11: =ROUND($E$11*G10,2) -> 3345.83 | H11: 3345.83 | I11: 3345.83 | J11: 2788.2 | K11: 2788.2 | L11: 3345.83 | M11: =SUM(F11:L11)+0.01 -> 22305.56
A12: D | B12: =VLOOKUP(A12,ORÇAMENTO!$A$9:$I$30,2) -> 4 | C12: =VLOOKUP(A12,ORÇAMENTO!$A$9:$I$30,3) -> OBRAS COMPLEMENTARES | D12: FISICO | E12: =ROUND(E13/$G$2,4) -> 0.3538 | G12: 0.05 | H12: 0.1 | I12: 0.15 | J12: 0.25 | K12: 0.25 | L12: 0.2 | M12: =SUM(F12:L12) -> 1
D13: FINANCEIRO | E13: =ORÇAMENTO!I24 -> 702732.55 | F13: =ROUND($E$13*F12,2) -> 0 | G13: =ROUND($E$13*G12,2) -> 35136.63 | H13: 70273.26 | I13: 105409.88 | J13: 175683.14 | K13: 175683.14 | L13: 140546.51 | M13: =SUM(F13:L13) -> 702732.56
B14: TOTAL | D14: FISICO | E14: =SUM(F14:L14) -> 1.00000001 | F14: =F15/E15 -> 0.09949740392 | G14: =G15/$E$15 -> 0.09874255511 | H14: 0.1468940469 | I14: 0.1791723995 | J14: 0.1825296547 | K14: 0.167943459 | L14: 0.1252204909 | M14: =SUM(F14:L14) -> 1.00000001
D15: FINANCEIRO | E15: =E11+E9+E7+E13 -> 1986000.36 | F15: 197601.88 | G15: 196102.75 | H15: 291731.63 | I15: 355836.45 | J15: 362503.96 | K15: 333535.77 | L15: 248687.94 | M15: =SUM(F15:L15)-0.02 -> 1986000.36
B17: OBSERVAÇÕES:
